[Event "Titled Tuesday Blitz April 4 Early 2023"]
[White "Svane, Rasmus"]
[Black "Real_OceanStorm"]
[WhiteFideId "4657101"]
[WhiteElo "2597"]
[BlackElo "2802"]
[Result "1-0"]
[Round "04"]
[TimeControl "180+2"]
[Date "2023.04.04"]
[WhiteClock "0:01:30"]
[BlackClock "0:01:35"]

1. Nf3 {[%clk 0:03:00]}  d5 {[%clk 0:02:52]} 2. g3 {[%clk 0:03:00]}  Nf6 {[%clk 0:02:52]} 3. Bg2 {[%clk 0:03:01]}  Bg4 {[%clk 0:02:52]} 4. O-O {[%clk 0:03:00]}  e6 {[%clk 0:02:52]} 5. h3 {[%clk 0:03:00]}  Bxf3 {[%clk 0:02:52]} 6. Bxf3 {[%clk 0:03:01]}  h5 {[%clk 0:02:52]} 7. d4 {[%clk 0:02:58]}  c5 {[%clk 0:02:52]} 8. c4 {[%clk 0:02:53]}  cxd4 {[%clk 0:02:52]} 9. cxd5 {[%clk 0:02:50]}  Nxd5 {[%clk 0:02:50]} 10. Qxd4 {[%clk 0:02:49]}  Nc6 {[%clk 0:02:50]} 11. Qa4 {[%clk 0:02:46]}  h4 {[%clk 0:02:49]} 12. g4 {[%clk 0:02:43]}  Qb6 {[%clk 0:02:49]} 13. Nc3 {[%clk 0:02:40]}  O-O-O {[%clk 0:02:46]} 14. Nxd5 {[%clk 0:02:38]}  exd5 {[%clk 0:02:43]} 15. Be3 {[%clk 0:02:39]}  d4 {[%clk 0:02:43]} 16. Bd2 {[%clk 0:01:57]}  d3 {[%clk 0:02:29]} 17. Be3 {[%clk 0:01:40]}  Bc5 {[%clk 0:02:17]} 18. Bxc5 {[%clk 0:01:38]}  Qxc5 {[%clk 0:02:17]} 19. Rac1 {[%clk 0:01:38]}  Qb6 {[%clk 0:01:46]} 20. Bxc6 {[%clk 0:01:32]}  Rd4 {[%clk 0:01:43]} 21. Bf3+ {[%clk 0:01:24]}  Kb8 {[%clk 0:01:43]} 22. Rc4 {[%clk 0:01:21]}  Rxc4 {[%clk 0:01:32]} 23. Qxc4 {[%clk 0:01:22]}  dxe2 {[%clk 0:01:29]} 24. Qxe2 {[%clk 0:01:21]}  Qc7 {[%clk 0:01:28]} 25. Re1 {[%clk 0:01:19]}  Rc8 {[%clk 0:01:28]} 26. Qe5 {[%clk 0:01:18]}  Qxe5 {[%clk 0:01:24]} 27. Rxe5 {[%clk 0:01:19]}  Rc2 {[%clk 0:01:24]} 28. Re8+ {[%clk 0:01:19]}  Kc7 {[%clk 0:01:16]} 29. Re7+ {[%clk 0:01:20]}  Kd6 {[%clk 0:01:16]} 30. Rxb7 {[%clk 0:01:21]}  Rc1+ {[%clk 0:01:16]} 31. Kg2 {[%clk 0:01:21]}  Rc2 {[%clk 0:01:17]} 32. Rxf7 {[%clk 0:01:20]}  g5 {[%clk 0:01:16]} 33. Rxa7 {[%clk 0:01:18]}  Rxb2 {[%clk 0:01:17]} 34. a4 {[%clk 0:01:19]}  Ra2 {[%clk 0:01:17]} 35. a5 {[%clk 0:01:19]}  Ra3 {[%clk 0:01:17]} 36. a6 {[%clk 0:01:20]}  Kc5 {[%clk 0:01:18]} 37. Ra8 {[%clk 0:01:20]}  Ra5 {[%clk 0:01:18]} 38. a7 {[%clk 0:01:19]}  Kb6 {[%clk 0:01:18]} 39. Rb8+ {[%clk 0:01:19]}  Kxa7 {[%clk 0:01:19]} 40. Ra8+ {[%clk 0:01:20]}  Kb6 {[%clk 0:01:19]} 41. Rxa5 {[%clk 0:01:21]}  Kxa5 {[%clk 0:01:20]} 42. Be2 {[%clk 0:01:20]}  Kb6 {[%clk 0:01:20]} 43. Kf3 {[%clk 0:01:21]}  Kc5 {[%clk 0:01:20]} 44. Ke4 {[%clk 0:01:22]}  Kd6 {[%clk 0:01:21]} 45. Kf5 {[%clk 0:01:23]}  Kd5 {[%clk 0:01:22]} 46. Kxg5 {[%clk 0:01:23]}  Ke5 {[%clk 0:01:23]} 47. Kxh4 {[%clk 0:01:24]}  Kf6 {[%clk 0:01:23]} 48. Kg3 {[%clk 0:01:25]}  Kg7 {[%clk 0:01:24]} 49. f4 {[%clk 0:01:26]}  Kh6 {[%clk 0:01:25]} 50. h4 {[%clk 0:01:27]}  Kh7 {[%clk 0:01:26]} 51. g5 {[%clk 0:01:28]}  Kg7 {[%clk 0:01:27]} 52. Kg4 {[%clk 0:01:29]}  Kh8 {[%clk 0:01:28]} 53. h5 {[%clk 0:01:29]}  Kh7 {[%clk 0:01:29]} 54. Bd3+ {[%clk 0:01:29]}  Kg8 {[%clk 0:01:29]} 55. f5 {[%clk 0:01:30]}  Kh8 {[%clk 0:01:30]} 56. f6 {[%clk 0:01:29]}  Kg8 {[%clk 0:01:31]} 57. Kf5 {[%clk 0:01:30]}  Kf8 {[%clk 0:01:32]} 58. g6 {[%clk 0:01:30]}  Kg8 {[%clk 0:01:32]} 59. h6 {[%clk 0:01:30]}  Kf8 {[%clk 0:01:33]} 60. Kg5 {[%clk 0:01:30]}  Kg8 {[%clk 0:01:34]} 61. Bc4+ {[%clk 0:01:30]}  Kf8 {[%clk 0:01:34]} 62. g7+ {[%clk 0:01:30]}  Ke8 {[%clk 0:01:35]} 63. f7+ {[%clk 0:01:30]}  Kd7 {[%clk 0:01:35]} 64. f8=Q {[%clk 0:01:31]}  Kc7 {[%clk 0:01:35]} 65. g8=Q {[%clk 0:01:31]}  Kc6 {[%clk 0:01:36]} 66. h7 {[%clk 0:01:30]}  Kb6 {[%clk 0:01:35]} 67. h8=Q {[%clk 0:01:30]}  Kc6 {[%clk 0:01:35]} 68. Qhf6+ {[%clk 0:01:30]}  Kd7 {[%clk 0:01:35]} 69. Qgg7# {[%clk 0:01:30]} 1-0


[Site "https://www.chess.com"]

[Event "Titled Tuesday Blitz April 4 Early 2023"]
[White "Gholami Orimi, Mahdi"]
[Black "Remizov, Yaroslav"]
[WhiteFideId "12558486"]
[BlackFideId "34134015"]
[WhiteElo "2363"]
[BlackElo "2412"]
[Result "0-1"]
[Round "04"]
[TimeControl "180+2"]
[Date "2023.04.04"]
[WhiteClock "0:00:18"]
[BlackClock "0:00:06"]

1. d4 {[%clk 0:03:00]}  Nf6 {[%clk 0:02:58]} 2. Nc3 {[%clk 0:03:00]}  d5 {[%clk 0:02:57]} 3. Bf4 {[%clk 0:03:00]}  a6 {[%clk 0:02:52]} 4. e3 {[%clk 0:02:59]}  b5 {[%clk 0:02:50]} 5. Nf3 {[%clk 0:02:58]}  e6 {[%clk 0:02:46]} 6. Bd3 {[%clk 0:02:56]}  c5 {[%clk 0:02:40]} 7. dxc5 {[%clk 0:02:54]}  Bxc5 {[%clk 0:02:41]} 8. e4 {[%clk 0:02:49]}  Bb7 {[%clk 0:02:36]} 9. e5 {[%clk 0:02:49]}  Nfd7 {[%clk 0:02:29]} 10. Ne2 {[%clk 0:02:49]}  Nc6 {[%clk 0:02:24]} 11. Ng3 {[%clk 0:02:47]}  Qb6 {[%clk 0:02:12]} 12. Qe2 {[%clk 0:02:43]}  h6 {[%clk 0:02:05]} 13. Nh5 {[%clk 0:02:34]}  g5 {[%clk 0:02:04]} 14. Bg3 {[%clk 0:02:32]}  O-O-O {[%clk 0:02:01]} 15. a4 {[%clk 0:02:31]}  b4 {[%clk 0:01:50]} 16. c3 {[%clk 0:02:31]}  a5 {[%clk 0:01:37]} 17. O-O {[%clk 0:02:28]}  Kb8 {[%clk 0:01:31]} 18. Bb5 {[%clk 0:02:25]}  Na7 {[%clk 0:01:24]} 19. Bd3 {[%clk 0:02:16]}  Nc6 {[%clk 0:01:24]} 20. Rfc1 {[%clk 0:02:14]}  Ka8 {[%clk 0:01:22]} 21. Bb5 {[%clk 0:02:11]}  Na7 {[%clk 0:01:21]} 22. Nf6 {[%clk 0:01:58]}  Nb8 {[%clk 0:00:55]} 23. Nd2 {[%clk 0:01:52]}  Rc8 {[%clk 0:00:51]} 24. Nb3 {[%clk 0:01:50]}  Rhd8 {[%clk 0:00:48]} 25. Nxc5 {[%clk 0:01:46]}  Qxc5 {[%clk 0:00:41]} 26. h4 {[%clk 0:01:37]}  gxh4 {[%clk 0:00:35]} 27. Bxh4 {[%clk 0:01:38]}  d4 {[%clk 0:00:33]} 28. Bg3 {[%clk 0:00:46]}  dxc3 {[%clk 0:00:30]} 29. bxc3 {[%clk 0:00:47]}  bxc3 {[%clk 0:00:26]} 30. Ne4 {[%clk 0:00:47]}  Qd5 {[%clk 0:00:26]} 31. f3 {[%clk 0:00:47]}  c2 {[%clk 0:00:20]} 32. Nd6 {[%clk 0:00:45]}  Rc3 {[%clk 0:00:14]} 33. Bf2 {[%clk 0:00:42]}  Bc6 {[%clk 0:00:08]} 34. Rxc2 {[%clk 0:00:39]}  Rxc2 {[%clk 0:00:06]} 35. Qxc2 {[%clk 0:00:40]}  Qxe5 {[%clk 0:00:06]} 36. Rc1 {[%clk 0:00:30]}  Rxd6 {[%clk 0:00:03]} 37. Bxa7 {[%clk 0:00:31]}  Kxa7 {[%clk 0:00:03]} 38. Qh7 {[%clk 0:00:28]}  Qd4+ {[%clk 0:00:04]} 39. Kh1 {[%clk 0:00:25]}  Bxb5 {[%clk 0:00:04]} 40. axb5 {[%clk 0:00:24]}  Rd7 {[%clk 0:00:04]} 41. Qc2 {[%clk 0:00:22]}  Qb6 {[%clk 0:00:04]} 42. Qc8 {[%clk 0:00:21]}  Rb7 {[%clk 0:00:04]} 43. Qh8 {[%clk 0:00:18]}  Qxb5 {[%clk 0:00:04]} 44. Qxh6 {[%clk 0:00:18]}  a4 {[%clk 0:00:04]} 45. Qe3+ {[%clk 0:00:18]}  Qb6 {[%clk 0:00:04]} 46. Qf4 {[%clk 0:00:18]}  Qb4 {[%clk 0:00:02]} 47. Rc4 {[%clk 0:00:19]}  Qb1+ {[%clk 0:00:03]} 48. Kh2 {[%clk 0:00:19]}  Qh7+ {[%clk 0:00:04]} 49. Kg3 {[%clk 0:00:20]}  Qg7+ {[%clk 0:00:03]} 50. Kh2 {[%clk 0:00:20]}  Na6 {[%clk 0:00:04]} 51. Rxa4 {[%clk 0:00:20]}  Qh7+ {[%clk 0:00:05]} 52. Kg3 {[%clk 0:00:20]}  Qg6+ {[%clk 0:00:05]} 53. Kh2 {[%clk 0:00:20]}  f6 {[%clk 0:00:06]} 54. Qd4+ {[%clk 0:00:20]}  Rb6 {[%clk 0:00:06]} 55. Qd7+ {[%clk 0:00:19]}  Rb7 {[%clk 0:00:06]} 56. Qxe6 {[%clk 0:00:20]}  Rh7+ {[%clk 0:00:06]} 57. Kg1 {[%clk 0:00:20]}  Qb1+ {[%clk 0:00:07]} 58. Kf2 {[%clk 0:00:19]}  Qc2+ {[%clk 0:00:07]} 59. Qe2 {[%clk 0:00:18]}  Qxa4 {[%clk 0:00:07]} 60. Qe3+ {[%clk 0:00:18]}  Kb8 {[%clk 0:00:06]} 61. Qe8+ {[%clk 0:00:18]}  Qxe8 {[%clk 0:00:06]} 0-1


[Site "https://www.chess.com"]

[Event "Titled Tuesday Blitz April 4 Early 2023"]
[White "Schmakel, Sam"]
[Black "Bacrot, Etienne"]
[WhiteFideId "2039311"]
[BlackFideId "605506"]
[WhiteElo "2356"]
[BlackElo "2663"]
[Result "1-0"]
[Round "04"]
[TimeControl "180+2"]
[Date "2023.04.04"]
[WhiteClock "0:00:03"]
[BlackClock "0:00:06"]

1. Nf3 {[%clk 0:03:00]}  d5 {[%clk 0:02:59]} 2. g3 {[%clk 0:03:00]}  e6 {[%clk 0:02:59]} 3. Bg2 {[%clk 0:03:00]}  Nf6 {[%clk 0:03:00]} 4. O-O {[%clk 0:03:00]}  Be7 {[%clk 0:03:00]} 5. c4 {[%clk 0:03:00]}  O-O {[%clk 0:03:00]} 6. d4 {[%clk 0:03:00]}  c6 {[%clk 0:03:00]} 7. Qc2 {[%clk 0:02:59]}  b6 {[%clk 0:02:58]} 8. Rd1 {[%clk 0:02:59]}  Bb7 {[%clk 0:02:58]} 9. Bf4 {[%clk 0:02:57]}  Nbd7 {[%clk 0:02:58]} 10. Ne5 {[%clk 0:02:45]}  Nxe5 {[%clk 0:02:54]} 11. dxe5 {[%clk 0:02:46]}  Nd7 {[%clk 0:02:54]} 12. cxd5 {[%clk 0:02:23]}  cxd5 {[%clk 0:02:52]} 13. Nc3 {[%clk 0:02:22]}  g5 {[%clk 0:02:45]} 14. Bd2 {[%clk 0:01:50]}  Nxe5 {[%clk 0:02:44]} 15. Nb5 {[%clk 0:01:49]}  a6 {[%clk 0:02:19]} 16. Nd4 {[%clk 0:01:49]}  Rc8 {[%clk 0:02:18]} 17. Bc3 {[%clk 0:01:49]}  b5 {[%clk 0:02:12]} 18. a3 {[%clk 0:01:46]}  Qb6 {[%clk 0:02:07]} 19. e4 {[%clk 0:01:44]}  Rfd8 {[%clk 0:02:02]} 20. Qe2 {[%clk 0:01:31]}  Bf6 {[%clk 0:01:48]} 21. f4 {[%clk 0:01:10]}  Ng6 {[%clk 0:00:49]} 22. e5 {[%clk 0:01:08]}  Bg7 {[%clk 0:00:49]} 23. Qg4 {[%clk 0:00:40]}  gxf4 {[%clk 0:00:41]} 24. gxf4 {[%clk 0:00:41]}  Rc4 {[%clk 0:00:40]} 25. Kh1 {[%clk 0:00:36]}  Rdc8 {[%clk 0:00:39]} 26. Rd3 {[%clk 0:00:12]}  a5 {[%clk 0:00:33]} 27. f5 {[%clk 0:00:08]}  Nxe5 {[%clk 0:00:32]} 28. Qg3 {[%clk 0:00:08]}  Rxc3 {[%clk 0:00:20]} 29. f6 {[%clk 0:00:04]}  Ng6 {[%clk 0:00:19]} 30. bxc3 {[%clk 0:00:02]}  Bxf6 {[%clk 0:00:18]} 31. Rf1 {[%clk 0:00:03]}  Bg7 {[%clk 0:00:15]} 32. h4 {[%clk 0:00:03]}  Qc7 {[%clk 0:00:15]} 33. Qxc7 {[%clk 0:00:03]}  Rxc7 {[%clk 0:00:15]} 34. Nxb5 {[%clk 0:00:03]}  Rc4 {[%clk 0:00:14]} 35. Nd6 {[%clk 0:00:04]}  Rxh4+ {[%clk 0:00:14]} 36. Rh3 {[%clk 0:00:03]}  Bc6 {[%clk 0:00:13]} 37. Rxf7 {[%clk 0:00:03]}  Rxh3+ {[%clk 0:00:13]} 38. Bxh3 {[%clk 0:00:04]}  d4+ {[%clk 0:00:14]} 39. Kg1 {[%clk 0:00:04]}  dxc3 {[%clk 0:00:12]} 40. Bxe6 {[%clk 0:00:04]}  Bd4+ {[%clk 0:00:12]} 41. Kf1 {[%clk 0:00:03]}  c2 {[%clk 0:00:12]} 42. Rc7+ {[%clk 0:00:03]}  Kf8 {[%clk 0:00:09]} 43. Rxc6 {[%clk 0:00:03]}  Be5 {[%clk 0:00:07]} 44. Nf5 {[%clk 0:00:03]}  Ne7 {[%clk 0:00:06]} 45. Rxc2 {[%clk 0:00:03]} 1-0


[Site "https://www.chess.com"]

[Event "Titled Tuesday Blitz April 4 Early 2023"]
[White "Zhigalko, Sergei"]
[Black "Srinath, Rao S.V."]
[WhiteFideId "13502956"]
[BlackFideId "5028876"]
[WhiteElo "2626"]
[BlackElo "2196"]
[Result "1-0"]
[Round "04"]
[TimeControl "180+2"]
[Date "2023.04.04"]
[WhiteClock "0:00:36"]
[BlackClock "0:00:16"]

1. e4 {[%clk 0:03:00]}  e6 {[%clk 0:02:59]} 2. d4 {[%clk 0:03:01]}  d5 {[%clk 0:03:00]} 3. e5 {[%clk 0:03:01]}  c5 {[%clk 0:02:59]} 4. c3 {[%clk 0:03:02]}  Nc6 {[%clk 0:02:58]} 5. Nf3 {[%clk 0:03:03]}  Bd7 {[%clk 0:02:59]} 6. Be2 {[%clk 0:03:03]}  Nge7 {[%clk 0:02:52]} 7. Na3 {[%clk 0:03:01]}  cxd4 {[%clk 0:02:51]} 8. cxd4 {[%clk 0:03:02]}  Nf5 {[%clk 0:02:51]} 9. Nc2 {[%clk 0:03:02]}  Qb6 {[%clk 0:02:50]} 10. O-O {[%clk 0:03:02]}  a5 {[%clk 0:02:47]} 11. h4 {[%clk 0:02:40]}  a4 {[%clk 0:02:37]} 12. h5 {[%clk 0:02:37]}  h6 {[%clk 0:02:26]} 13. Rb1 {[%clk 0:02:29]}  Nb4 {[%clk 0:02:23]} 14. Nxb4 {[%clk 0:02:24]}  Bxb4 {[%clk 0:02:24]} 15. g4 {[%clk 0:02:03]}  Ne7 {[%clk 0:02:23]} 16. a3 {[%clk 0:01:46]}  Bxa3 {[%clk 0:02:11]} 17. Bxh6 {[%clk 0:01:46]}  gxh6 {[%clk 0:02:02]} 18. bxa3 {[%clk 0:01:46]}  Qc7 {[%clk 0:01:59]} 19. Qd2 {[%clk 0:01:36]}  Nc6 {[%clk 0:01:50]} 20. Rfc1 {[%clk 0:01:34]}  Rb8 {[%clk 0:01:12]} 21. Bb5 {[%clk 0:01:13]}  Rg8 {[%clk 0:01:08]} 22. Nh2 {[%clk 0:01:13]}  Qa5 {[%clk 0:00:54]} 23. Qf4 {[%clk 0:00:56]}  Nd8 {[%clk 0:00:18]} 24. Bxd7+ {[%clk 0:00:41]}  Kxd7 {[%clk 0:00:19]} 25. Qxh6 {[%clk 0:00:41]}  Nc6 {[%clk 0:00:17]} 26. Qf4 {[%clk 0:00:38]}  Rbf8 {[%clk 0:00:16]} 27. Rxb7+ {[%clk 0:00:38]}  Kc8 {[%clk 0:00:16]} 28. Rxf7 {[%clk 0:00:36]} 1-0


[Site "https://www.chess.com"]

[Event "Titled Tuesday Blitz April 4 Early 2023"]
[White "Maksimovic, Bojan"]
[Black "Chernomordik, Pavel"]
[WhiteFideId "14408120"]
[BlackFideId "2804530"]
[WhiteElo "2468"]
[BlackElo "2193"]
[Result "1-0"]
[Round "04"]
[TimeControl "180+2"]
[Date "2023.04.04"]
[WhiteClock "0:00:45"]
[BlackClock "0:00:26"]

1. Nf3 {[%clk 0:03:00]}  g6 {[%clk 0:02:59]} 2. g3 {[%clk 0:03:01]}  Bg7 {[%clk 0:02:59]} 3. Bg2 {[%clk 0:03:02]}  e5 {[%clk 0:02:59]} 4. O-O {[%clk 0:03:03]}  Nc6 {[%clk 0:02:59]} 5. d3 {[%clk 0:03:03]}  d6 {[%clk 0:02:59]} 6. Nbd2 {[%clk 0:03:04]}  Be6 {[%clk 0:02:58]} 7. e4 {[%clk 0:03:04]}  h6 {[%clk 0:02:57]} 8. c3 {[%clk 0:03:05]}  Qd7 {[%clk 0:02:57]} 9. b4 {[%clk 0:03:06]}  Bh3 {[%clk 0:02:54]} 10. a4 {[%clk 0:03:05]}  Bxg2 {[%clk 0:02:53]} 11. Kxg2 {[%clk 0:03:06]}  Nge7 {[%clk 0:02:49]} 12. Bb2 {[%clk 0:03:03]}  O-O {[%clk 0:02:47]} 13. Qb3 {[%clk 0:02:56]}  Kh7 {[%clk 0:02:44]} 14. b5 {[%clk 0:02:56]}  Nd8 {[%clk 0:02:41]} 15. d4 {[%clk 0:02:55]}  f5 {[%clk 0:02:26]} 16. dxe5 {[%clk 0:02:48]}  dxe5 {[%clk 0:02:21]} 17. c4 {[%clk 0:02:38]}  Ne6 {[%clk 0:02:13]} 18. Rad1 {[%clk 0:02:34]}  Nd4 {[%clk 0:02:07]} 19. Nxd4 {[%clk 0:01:53]}  exd4 {[%clk 0:02:05]} 20. e5 {[%clk 0:01:38]}  c5 {[%clk 0:02:01]} 21. bxc6 {[%clk 0:01:27]}  Qxc6+ {[%clk 0:01:49]} 22. Kg1 {[%clk 0:01:20]}  Bxe5 {[%clk 0:01:43]} 23. Nf3 {[%clk 0:01:18]}  Bg7 {[%clk 0:01:41]} 24. Rfe1 {[%clk 0:01:13]}  Rae8 {[%clk 0:01:36]} 25. Nxd4 {[%clk 0:01:13]}  Bxd4 {[%clk 0:01:33]} 26. Bxd4 {[%clk 0:01:14]}  Nc8 {[%clk 0:01:30]} 27. Bb2 {[%clk 0:01:14]}  Rxe1+ {[%clk 0:01:18]} 28. Rxe1 {[%clk 0:01:15]}  Re8 {[%clk 0:01:19]} 29. Rd1 {[%clk 0:01:14]}  Re7 {[%clk 0:01:13]} 30. Qc3 {[%clk 0:01:12]}  Qe8 {[%clk 0:01:13]} 31. a5 {[%clk 0:01:07]}  g5 {[%clk 0:00:58]} 32. h3 {[%clk 0:00:57]}  Kg6 {[%clk 0:00:56]} 33. Qf6+ {[%clk 0:00:55]}  Kh5 {[%clk 0:00:42]} 34. Qxf5 {[%clk 0:00:52]}  Re1+ {[%clk 0:00:34]} 35. Rxe1 {[%clk 0:00:51]}  Qxe1+ {[%clk 0:00:34]} 36. Kg2 {[%clk 0:00:51]}  Nd6 {[%clk 0:00:34]} 37. g4+ {[%clk 0:00:43]}  Kh4 {[%clk 0:00:33]} 38. Qf3 {[%clk 0:00:44]}  Qe4 {[%clk 0:00:31]} 39. Qxe4 {[%clk 0:00:44]}  Nxe4 {[%clk 0:00:31]} 40. Be5 {[%clk 0:00:45]}  Nd2 {[%clk 0:00:26]} 41. Bg3# {[%clk 0:00:45]} 1-0


[Site "https://www.chess.com"]

[Event "Titled Tuesday Blitz April 4 Early 2023"]
[White "Vafin, Ayrat"]
[Black "Hovhannisyan, Robert"]
[WhiteFideId "4146530"]
[BlackFideId "13302507"]
[WhiteElo "2317"]
[BlackElo "2570"]
[Result "0-1"]
[Round "04"]
[TimeControl "180+2"]
[Date "2023.04.04"]
[WhiteClock "0:00:02"]
[BlackClock "0:00:02"]

1. Nf3 {[%clk 0:03:00]}  d5 {[%clk 0:02:59]} 2. g3 {[%clk 0:03:01]}  Bf5 {[%clk 0:02:47]} 3. Bg2 {[%clk 0:03:00]}  e6 {[%clk 0:02:48]} 4. c4 {[%clk 0:02:59]}  c6 {[%clk 0:02:47]} 5. O-O {[%clk 0:02:59]}  Nf6 {[%clk 0:02:47]} 6. d3 {[%clk 0:02:59]}  Be7 {[%clk 0:02:46]} 7. Be3 {[%clk 0:02:59]}  dxc4 {[%clk 0:02:43]} 8. dxc4 {[%clk 0:02:59]}  Qxd1 {[%clk 0:02:43]} 9. Rxd1 {[%clk 0:03:00]}  Nbd7 {[%clk 0:02:43]} 10. Nc3 {[%clk 0:03:00]}  a5 {[%clk 0:02:37]} 11. Rac1 {[%clk 0:02:52]}  Nc5 {[%clk 0:02:29]} 12. Nd4 {[%clk 0:02:37]}  Bg6 {[%clk 0:02:27]} 13. Nxc6 {[%clk 0:02:36]}  Nfd7 {[%clk 0:02:13]} 14. Nb5 {[%clk 0:02:15]}  Rc8 {[%clk 0:01:55]} 15. Nxe7 {[%clk 0:01:50]}  Kxe7 {[%clk 0:01:56]} 16. Rd6 {[%clk 0:01:17]}  Rhd8 {[%clk 0:01:43]} 17. Rcd1 {[%clk 0:01:15]}  Bc2 {[%clk 0:01:17]} 18. R1d2 {[%clk 0:01:08]}  Be4 {[%clk 0:01:07]} 19. Rxd7+ {[%clk 0:00:56]}  Rxd7 {[%clk 0:01:04]} 20. Bxc5+ {[%clk 0:00:55]}  Rxc5 {[%clk 0:01:03]} 21. Rxd7+ {[%clk 0:00:54]}  Kxd7 {[%clk 0:01:04]} 22. Bxe4 {[%clk 0:00:53]}  Rxc4 {[%clk 0:01:04]} 23. Bd3 {[%clk 0:00:38]}  Rc1+ {[%clk 0:00:53]} 24. Kg2 {[%clk 0:00:37]}  f5 {[%clk 0:00:54]} 25. Nd4 {[%clk 0:00:33]}  g6 {[%clk 0:00:50]} 26. a4 {[%clk 0:00:28]}  e5 {[%clk 0:00:41]} 27. Nb3 {[%clk 0:00:27]}  Rd1 {[%clk 0:00:38]} 28. f3 {[%clk 0:00:23]}  b6 {[%clk 0:00:32]} 29. h4 {[%clk 0:00:23]}  Kd6 {[%clk 0:00:32]} 30. Kf2 {[%clk 0:00:23]}  Rh1 {[%clk 0:00:31]} 31. Nd2 {[%clk 0:00:17]}  Kc5 {[%clk 0:00:25]} 32. b3 {[%clk 0:00:16]}  f4 {[%clk 0:00:22]} 33. gxf4 {[%clk 0:00:15]}  exf4 {[%clk 0:00:22]} 34. Ne4+ {[%clk 0:00:13]}  Kb4 {[%clk 0:00:21]} 35. Bc4 {[%clk 0:00:12]}  Rxh4 {[%clk 0:00:18]} 36. Nf6 {[%clk 0:00:12]}  Rh1 {[%clk 0:00:15]} 37. Nd5+ {[%clk 0:00:11]}  Kc5 {[%clk 0:00:15]} 38. Nxf4 {[%clk 0:00:12]}  Ra1 {[%clk 0:00:08]} 39. e4 {[%clk 0:00:10]}  Kd4 {[%clk 0:00:07]} 40. Nd5 {[%clk 0:00:09]}  Ra2+ {[%clk 0:00:07]} 41. Kg3 {[%clk 0:00:09]}  h5 {[%clk 0:00:04]} 42. Nxb6 {[%clk 0:00:08]}  g5 {[%clk 0:00:04]} 43. Nd5 {[%clk 0:00:05]}  h4+ {[%clk 0:00:05]} 44. Kh3 {[%clk 0:00:05]}  Ke5 {[%clk 0:00:04]} 45. Ne3 {[%clk 0:00:05]}  Kf4 {[%clk 0:00:03]} 46. Ng4 {[%clk 0:00:03]}  Kxf3 {[%clk 0:00:04]} 47. e5 {[%clk 0:00:04]}  Ra1 {[%clk 0:00:03]} 48. e6 {[%clk 0:00:04]}  Re1 {[%clk 0:00:03]} 49. Nh2+ {[%clk 0:00:04]}  Kf4 {[%clk 0:00:04]} 50. Kg2 {[%clk 0:00:03]}  g4 {[%clk 0:00:03]} 51. Kf2 {[%clk 0:00:04]}  Re5 {[%clk 0:00:03]} 52. Nf1 {[%clk 0:00:03]}  g3+ {[%clk 0:00:03]} 53. Kg1 {[%clk 0:00:04]}  h3 {[%clk 0:00:03]} 54. Nxg3 {[%clk 0:00:02]}  Kxg3 {[%clk 0:00:02]} 55. Kf1 {[%clk 0:00:02]}  h2 {[%clk 0:00:02]} 56. e7 {[%clk 0:00:02]}  h1=Q# {[%clk 0:00:02]} 0-1


[Site "https://www.chess.com"]

[Event "Titled Tuesday Blitz April 4 Early 2023"]
[White "Gurel, Ediz"]
[Black "Ambartsumova, Karina"]
[WhiteFideId "44507356"]
[BlackFideId "4166299"]
[WhiteElo "2352"]
[BlackElo "2240"]
[Result "1-0"]
[Round "04"]
[TimeControl "180+2"]
[Date "2023.04.04"]
[WhiteClock "0:02:45"]
[BlackClock "0:00:08"]

1. e4 {[%clk 0:03:00]}  e5 {[%clk 0:02:58]} 2. Nf3 {[%clk 0:03:01]}  Nc6 {[%clk 0:02:58]} 3. Bb5 {[%clk 0:03:01]}  Nf6 {[%clk 0:02:57]} 4. O-O {[%clk 0:03:01]}  Nxe4 {[%clk 0:02:56]} 5. Re1 {[%clk 0:03:01]}  Nd6 {[%clk 0:02:56]} 6. Nxe5 {[%clk 0:03:02]}  Nxe5 {[%clk 0:02:54]} 7. Rxe5+ {[%clk 0:03:03]}  Be7 {[%clk 0:02:55]} 8. Bf1 {[%clk 0:03:03]}  O-O {[%clk 0:02:55]} 9. d4 {[%clk 0:03:04]}  Ne8 {[%clk 0:02:53]} 10. Nc3 {[%clk 0:03:03]}  Bf6 {[%clk 0:02:51]} 11. Bd3 {[%clk 0:02:54]}  Bxe5 {[%clk 0:02:13]} 12. dxe5 {[%clk 0:02:54]}  d6 {[%clk 0:02:13]} 13. Qh5 {[%clk 0:02:54]}  g6 {[%clk 0:02:13]} 14. Qh6 {[%clk 0:02:55]}  dxe5 {[%clk 0:02:04]} 15. Bg5 {[%clk 0:02:54]}  Qd7 {[%clk 0:01:26]} 16. Ne4 {[%clk 0:02:48]}  Qc6 {[%clk 0:00:08]} 17. Be7 {[%clk 0:02:47]}  Ng7 {[%clk 0:00:08]} 18. Nf6+ {[%clk 0:02:45]}  Kh8 {[%clk 0:00:08]} 19. Qxh7# {[%clk 0:02:45]} 1-0


[Site "https://www.chess.com"]